[Event "45th FIDE Olympiad 2024"]
[Site "Budapest"]
[Date "2024.09.18"]
[Round "7"]
[White "Mtsetfwa, Philani"]
[Black "Mendez Ramirez, Victor"]
[Result "0-1"]
[WhiteElo "1688"]
[BlackElo "2191"]
[PlyCount "36"]
[EventDate "2024.09.05"]
[EventType "team-tourn"]
[EventCountry "HUN"]
[WhiteTeam "Eswatini"]
[BlackTeam "Dominican Republic"]
[BlackTeamCountry "DOM"]
[TimeControl "40/5400+30:1800+30"]

1. e4 c5 2. Nf3 g6 3. d4 cxd4 4. Nxd4 Nc6 5. c4 Nf6 6. Nc3 d6 7. Be3 Ng4 8. Bg5 Qb6 9. Nd5 Qxd4 10. Qxd4 Nxd4 11. Nc7+ Kd8 12. Nxa8 Nc2+ 13. Kd2 Nxa1 14. f3 Bh6 15. Bxh6 Nxh6 16. c5 dxc5 17. Bb5 Bd7 18. Bc4 Kc8 {0-} 0-1

[Event "45th FIDE Olympiad 2024"]
[Site "Budapest"]
[Date "2024.09.18"]
[Round "7.1"]
[White "Gukesh, D."]
[Black "Wei, Yi"]
[Result "1-0"]
[ECO "B50"]
[WhiteElo "2764"]
[BlackElo "2762"]
[Annotator "RC"]
[PlyCount "159"]
[EventDate "2024.09.05"]
[EventType "team-tourn"]
[EventCountry "HUN"]
[SourceTitle "playchess.com"]
[Source "ChessBase"]
[SourceQuality "1"]
[WhiteTeam "India"]
[BlackTeam "China"]
[WhiteTeamCountry "IND"]
[BlackTeamCountry "CHN"]
[TimeControl "40/5400+30:1800+30"]

1. e4 {[%emt 0:00:04]} c5 {[%emt 0:00:12]} 2. Nf3 {[%emt 0:00:06]} d6 {[%emt 0:00:09]} 3. Nc3 {[%emt 0:00:07]} Nf6 {[%emt 0:00:14]} 4. Be2 {[%emt 0:00:06]} e5 {[%emt 0:01:00]} 5. Bc4 {[%emt 0:00:08]} Be7 {[%emt 0:00:43]} 6. d3 {[%emt 0:00:09]} Nc6 {[%emt 0:01:15]} 7. Bg5 {[%emt 0:05:49]} O-O {[%emt 0:06:51]} 8. Bxf6 {[%emt 0:00:14]} Bxf6 {[%emt 0:00:24]} 9. Nd5 {[%emt 0:00:07]} Be6 {[%emt 0:09:28]} 10. Qd2 {[%emt 0:03:13]} a6 {[%emt 0:22:38]} 11. O-O {[%emt 0:12:08]} b5 {[%emt 0:05:34]} 12. Bb3 {[%emt 0:00:30]} Kh8 {[%emt 0:01:25]} 13. a3 {[%emt 0:16:18]} Rb8 {[%emt 0:05:30]} 14. h3 {[%emt 0:02:54]} g6 {[%emt 0:03:34]} 15. c3 {[%emt 0:17:27]} Bg7 {[%emt 0:01:48]} 16. Ba2 {[%emt 0:17:17]} f5 {[%emt 0:05:30]} 17. Ng5 {[%emt 0:04:37]} Bg8 {[%emt 0:03:47]} 18. exf5 {[%emt 0:00:26]} gxf5 {[%emt 0:08:51]} 19. f4 {[%emt 0:00:05]} c4 {[%emt 0:06:40]} 20. dxc4 {[%emt 0:00:33]} bxc4 {[%emt 0:00:40]} 21. Bxc4 {[%emt 0:01:06]} exf4 {[%emt 0:00:15]} 22. Nf3 {[%emt 0:01:14]} Na5 {[%emt 0:03:55]} 23. Ba2 {[%emt 0:01:29]} Nb3 {[%emt 0:00:13]} 24. Bxb3 {[%emt 0:00:06]} Rxb3 {[%emt 0:00:05]} 25. Nxf4 {[%emt 0:02:16]} Qb6+ {[%emt 0:00:05]} 26. Rf2 {[%emt 0:02:47]} Rb8 {[%emt 0:00:14]} 27. Rd1 {[%emt 0:02:48]} Rxb2 {[%emt 0:07:36]} 28. Qxb2 {[%emt 0:00:06]} Qxb2 {[%emt 0:00:03]} 29. Rxb2 {[%emt 0:00:03]} Rxb2 {[%emt 0:00:07]} 30. Rxd6 {[%emt 0:00:03]} a5 {[%emt 0:02:23]} 31. Rd8 {[%emt 0:00:54]} Bxc3 {[%emt 0:00:38]} 32. Nd5 {[%emt 0:07:31]} Rb1+ {[%emt 0:00:09]} 33. Kf2 {[%emt 0:00:04]} Rd1 {[%emt 0:00:46]} 34. Rxg8+ {[%emt 0:00:57]} Kxg8 {[%emt 0:00:04]} 35. Nxc3 {[%emt 0:00:04]} Rc1 {[%emt 0:02:26]} 36. Nb5 {[%emt 0:00:24]} Rc2+ {[%emt 0:00:22]} 37. Kf1 {[%emt 0:00:59]} Kf7 {[%emt 0:02:50]} 38. Nfd4 {[%emt 0:01:11]} Rc1+ {[%emt 0:00:03]} 39. Ke2 {[%emt 0:00:47]} Kf6 {[%emt 0:00:03]} 40. Nd6 {[%emt 0:02:43]} Rc3 {[%emt 0:01:27]} 41. N6b5 {[%emt 0:05:52]} Rc1 {[%emt 0:03:47]} 42. Ke3 {[%emt 0:08:58]} Rg1 {[%emt 0:07:40]} 43. Kf2 {[%emt 0:00:09]} Rc1 {[%emt 0:00:29]} 44. Ne2 {[%emt 0:00:24]} Rb1 {[%emt 0:05:13]} 45. Nbc3 {[%emt 0:00:48]} Rb3 {[%emt 0:01:22]} 46. a4 {[%emt 0:00:05]} Ke5 {[%emt 0:02:26]} 47. g3 {[%emt 0:00:45]} Rb6 {[%emt 0:01:32]} 48. Ke3 {[%emt 0:00:34]} Rb4 {[%emt 0:01:26]} 49. Kd3 {[%emt 0:00:35]} h6 {[%emt 0:01:20]} 50. Ke3 {[%emt 0:00:54]} Rb3 {[%emt 0:00:09]} 51. Kd3 {[%emt 0:00:28]} Rb4 {[%emt 0:00:05]} 52. Ng1 {[%emt 0:02:47]} Rb8 {[%emt 0:03:12]} 53. Nf3+ {[%emt 0:00:06]} Kf6 {[%emt 0:00:18]} 54. Nd4 {[%emt 0:01:02]} Rd8 {[%emt 0:01:54]} 55. Ke3 {[%emt 0:04:21]} Rc8 {[%emt 0:00:04]} 56. Kd3 {[%emt 0:04:48]} Rd8 {[%emt 0:00:21]} 57. Nce2 {[%emt 0:00:06]} Rb8 {[%emt 0:01:39]} 58. Nf4 {[%emt 0:01:06]} Rb1 {[%emt 0:00:08]} 59. Nd5+ {[%emt 0:00:24]} Ke5 {[%emt 0:00:39]} 60. Nc3 {[%emt 0:03:00]} Rh1 {[%emt 0:00:45]} 61. Nf3+ {[%emt 0:00:46]} Kd6 {[%emt 0:02:06]} 62. h4 {[%emt 0:00:53]} Rh3 {[%emt 0:01:43]} 63. Ne2 {[%emt 0:01:08]} f4 {[%emt 0:00:40]} 64. Nfg1 {[%emt 0:00:35]} Rh1 {[%emt 0:00:04]} 65. gxf4 {[%emt 0:00:03]} Rxh4 {[%emt 0:00:07]} 66. Nf3 {[%emt 0:01:39]} Rh1 {[%emt 0:00:07]} 67. f5 {[%emt 0:00:27]} h5 {[%emt 0:02:55]} 68. Nc3 {[%emt 0:00:03]} h4 {[%emt 0:01:10]} 69. Ne4+ {[%emt 0:00:23]} Kd7 {[%emt 0:00:34]} 70. Ne5+ {[%emt 0:01:52]} Kd8 {[%emt 0:00:13]} 71. f6 {[%emt 0:00:12]} h3 {[%emt 0:00:44]} 72. f7 {[%emt 0:00:19]} Rf1 {[%emt 0:00:49]} 73. Ng5 {[%emt 0:01:03]} h2 {[%emt 0:00:43]} 74. Ngf3 {[%emt 0:00:10]} Ke7 {[%emt 0:00:13]} 75. Nxh2 {[%emt 0:00:05]} Ra1 {[%emt 0:00:24]} 76. Nhg4 {[%emt 0:01:13]} Ra3+ {[%emt 0:00:11]} 77. Kd2 {[%emt 0:00:29]} Rxa4 {[%emt 0:01:02]} 78. Nh6 {[%emt 0:00:10]} Ra2+ {[%emt 0:00:41]} 79. Ke3 {[%emt 0:00:06]} Ra3+ {[%emt 0:00:34]} 80. Ke4 {[%emt 0:00:59]} 1-0

[Event "45th FIDE Olympiad 2024"]
[Site "Budapest"]
[Date "2024.09.18"]
[Round "7.1"]
[White "De Mey, Juan Pablo"]
[Black "Pg, Md Omar Ak Hafizon"]
[Result "1/2-1/2"]
[WhiteElo "1992"]
[BlackElo "2159"]
[PlyCount "93"]
[EventDate "2024.09.05"]
[EventType "team-tourn"]
[EventCountry "HUN"]
[WhiteTeam "Aruba"]
[BlackTeam "Brunei Darussalam"]
[WhiteTeamCountry "ARN"]
[TimeControl "40/5400+30:1800+30"]

1. e4 c5 2. Nf3 e6 3. d4 cxd4 4. Nxd4 Nc6 5. Nc3 a6 6. a3 d6 7. g4 h6 8. Be3 Nf6 9. Rg1 Bd7 10. Be2 Rc8 11. h4 h5 12. g5 Ng4 13. Nxc6 Rxc6 14. Bxg4 hxg4 15. Qxg4 g6 16. Bd2 Bg7 17. Qg3 b5 18. Rf1 Qb8 19. e5 b4 20. axb4 Qxb4 21. f4 dxe5 22. O-O-O Rb6 23. b3 Qa3+ 24. Kb1 e4 25. Bc1 Qa5 26. Bb2 Bc6 27. h5 Rxh5 28. Rfe1 Qf5 29. Qe3 Rb7 30. Nxe4 Bxe4 31. Qxe4 Qxe4 32. Rxe4 Bxb2 33. Kxb2 Rh2 34. Rc4 Rf2 35. Rd6 Ra7 36. b4 Ke7 37. Rb6 Rd2 38. Rcc6 Rd4 39. Kb3 a5 40. bxa5 Rxa5 41. Rc7+ Rd7 42. Rxd7+ Kxd7 43. Rb7+ Ke8 44. Rb8+ Ke7 45. Rb7+ Ke8 46. Rb8+ Ke7 47. Rb7+ 1/2-1/2

[Event "45th FIDE Olympiad 2024"]
[Site "Budapest"]
[Date "2024.09.18"]
[Round "7.2"]
[White "Yu, Yangyi"]
[Black "Praggnanandhaa, R."]
[Result "1/2-1/2"]
[ECO "D28"]
[WhiteElo "2703"]
[BlackElo "2750"]
[Annotator "TA"]
[PlyCount "34"]
[EventDate "2024.09.05"]
[EventType "team-tourn"]
[EventCountry "HUN"]
[SourceTitle "playchess.com"]
[Source "ChessBase"]
[SourceQuality "1"]
[WhiteTeam "China"]
[BlackTeam "India"]
[WhiteTeamCountry "CHN"]
[BlackTeamCountry "IND"]
[TimeControl "40/5400+30:1800+30"]

{[%evp 20,34,29,41,21,25,25,11,25,33,28,0,5,0,39,0,27]} 1. d4 {[%emt 0:00:04]} d5 {[%emt 0:01:18]} 2. c4 {[%emt 0:00:23]} dxc4 {[%emt 0:00:10]} 3. Nf3 {[%emt 0:00:08]} Nf6 {[%emt 0:00:05]} 4. e3 {[%emt 0:00:16]} e6 {[%emt 0:00:06]} 5. Bxc4 {[%emt 0:00:11]} c5 {[%emt 0:00:14]} 6. O-O {[%emt 0:00:35]} Nc6 {[%emt 0:00:05]} 7. Qe2 {[%emt 0:02:06]} a6 {[%emt 0:00:57]} 8. Rd1 {[%emt 0:02:33]} b5 {[%emt 0:00:11]} 9. dxc5 {[%emt 0:01:09]} Qc7 {[%emt 0:00:15]} 10. Bd3 {[%emt 0:00:53]} Bxc5 {[%emt 0:00:08]} 11. a4 {[%emt 0:00:21]} bxa4 {[%emt 0:00:15]} 12. Rxa4 {[%emt 0:00:18][%cal Oa4c4]} O-O {[%emt 0:00:30]} 13. Bd2 {[%emt 0:01:15][%cal Oa4c4] Dodges Nb4} Bb7 {[%emt 0:05:02]} 14. Rc1 {[%emt 0:03:18]} Qd6 {[%emt 0:06:04]} 15. Rd1 {[%emt 0:20:31]} Qc7 {[%emt 0:12:43] Inhibits b4.} 16. Rc1 {[%emt 0:06:43]} Qd6 {[%emt 0:00:30]} 17. Rd1 {[%emt 0:01:19]} Qc7 {[%emt 0:08:22] Repels b4. A rather calm draw.   Weighted Error Value: White=0.13 (very precise) /Black=0.00 (flawless) .  OK:         	White=2     	Black=4} 1/2-1/2

[Event "45th FIDE Olympiad 2024"]
[Site "Budapest"]
[Date "2024.09.18"]
[Round "7.2"]
[White "Lim Teck Guan, Rodney"]
[Black "Stetsenko, Ilya"]
[Result "1-0"]
[WhiteElo "1931"]
[BlackElo "1903"]
[PlyCount "96"]
[EventDate "2024.09.05"]
[EventType "team-tourn"]
[EventCountry "HUN"]
[WhiteTeam "Brunei Darussalam"]
[BlackTeam "Aruba"]
[BlackTeamCountry "ARN"]
[TimeControl "40/5400+30:1800+30"]

1. d4 Nf6 2. c4 e6 3. Nc3 Bb4 4. Nf3 b6 5. g3 Bxc3+ 6. bxc3 Bb7 7. Bg2 O-O 8. O-O d6 9. Bg5 Nbd7 10. Re1 Qe7 11. Nd2 Bxg2 12. Kxg2 e5 13. e4 h6 14. Bxf6 Qxf6 15. Qf3 Qxf3+ 16. Nxf3 Rae8 17. Re2 g5 18. h4 g4 19. Nh2 h5 20. f3 f5 21. Rae1 f4 22. Rf2 Nf6 23. d5 Kh8 24. fxg4 Nxg4 25. Nxg4 hxg4 26. Ref1 f3+ 27. Kg1 Rc8 28. c5 bxc5 29. Rb2 Rb8 30. Rff2 Rb6 31. Rxb6 cxb6 32. c4 Rb8 33. a4 a6 34. Rb2 b5 35. Kf2 Kg7 36. Ke3 Kf7 37. axb5 axb5 38. cxb5 c4 39. Kd2 Ke7 40. Kc3 Rf8 41. Rf2 Rc8 42. b6 Kd7 43. Ra2 Rb8 44. Ra7+ Kd8 45. h5 Rxb6 46. h6 Rb3+ 47. Kc2 Rb1 48. Kxb1 f2 1-0

[Event "45th FIDE Olympiad 2024"]
[Site "Budapest"]
[Date "2024.09.18"]
[Round "7.3"]
[White "Erigaisi, Arjun"]
[Black "Bu, Xiangzhi"]
[Result "1/2-1/2"]
[ECO "C42"]
[WhiteElo "2778"]
[BlackElo "2693"]
[Annotator "TA"]
[PlyCount "52"]
[EventDate "2024.09.05"]
[EventType "team-tourn"]
[EventCountry "HUN"]
[SourceTitle "playchess.com"]
[Source "ChessBase"]
[SourceQuality "1"]
[WhiteTeam "India"]
[BlackTeam "China"]
[WhiteTeamCountry "IND"]
[BlackTeamCountry "CHN"]
[TimeControl "40/5400+30:1800+30"]

{[%evp 13,52,18,4,4,18,0,5,0,22,0,12,16,23,16,20,19,19,0,16,17,53,0,0,0,0,0,0,0,9,0,0,0,0,0,0,0,0,0,0,0,0]} 1. e4 {[%emt 0:00:06]} e5 {[%emt 0:00:13]} 2. Nf3 {[%emt 0:00:07]} Nf6 {[%emt 0:00:11]} 3. Nxe5 {[%emt 0:00:06]} d6 {[%emt 0:00:03]} 4. Nf3 {[%emt 0:00:05]} Nxe4 {[%emt 0:00:03]} 5. Nc3 {[%emt 0:00:05]} Nxc3 {[%emt 0:00:41]} 6. dxc3 {[%emt 0:00:06]} Be7 {[%emt 0:00:17]} 7. Be3 {[%emt 0:00:06]} O-O {[%emt 0:00:21]} 8. Qd2 {[%emt 0:00:14]} Nd7 {[%emt 0:00:21]} 9. O-O-O {[%emt 0:00:08]} Nf6 {[%emt 0:01:34]} 10. Bd3 {[%emt 0:00:07]} Re8 {[%emt 0:01:03]} 11. h3 {[%emt 0:01:26]} Bd7 {[%emt 0:01:40]} 12. Rhe1 {[%emt 0:03:20]} c5 {[%emt 0:04:02]} 13. Bg5 {[%emt 0:01:08]} h6 {[%emt 0:02:35]} 14. Bxf6 {[%emt 0:00:35]} Bxf6 {[%emt 0:00:05]} 15. Be4 {[%emt 0:01:20]} Qa5 {[%emt 0:13:57]} 16. a3 {[%emt 0:10:23]} (16. Qxd6 Rad8 17. a3 (17. Bxb7 $2 Rxe1 18. Rxe1 Bc8 $19) 17... Be6 $17) (16. Bxb7 Qxa2 17. Qd5 Qa1+ 18. Kd2 Qxb2 $19) 16... Rab8 {[%emt 0:07:38]} 17. Qf4 {[%emt 0:18:56]} (17. Qxd6 $14 Be6 18. Rd3) 17... b5 $11 {[%emt 0:20:05] [#] White must now prevent ...b4. The position is equal.} 18. Rxd6 {[%emt 0:02:29]} b4 $1 {[%emt 0:08:41]} 19. Rxf6 {[%emt 0:00:48]} (19. Rxd7 bxa3 20. b4 (20. bxa3 $2 Qxc3 21. Kd1 Rb1+ 22. Ke2 Qc4+ 23. Kd2 Bc3+ 24. Ke3 Bxe1 $19) 20... Qa4 $19) 19... bxc3 {[%emt 0:01:01]} (19... gxf6 20. Qxh6 Rxe4 (20... bxa3 21. Bh7+ Kh8 22. Bg6+ Kg8 23. Qh7+ Kf8 24. Qxf7#) 21. Rxe4 bxa3 22. bxa3 (22. Qxf6 $2 axb2+ 23. Kd2 Qd8 $19) 22... Qxc3 23. Qf4 Qxa3+ 24. Kd2 Qa5+ 25. Ke2 Qa6+ 26. c4 Rb2+ 27. Nd2) 20. bxc3 {[%emt 0:00:08]} Qxc3 {[%emt 0:05:56]} (20... Qxa3+ 21. Kd2 gxf6 22. Qxh6 Rxe4 23. Rxe4 $14) 21. Rd6 {[%emt 0:03:41]} Qxa3+ {[%emt 0:01:02]} 22. Kd2 {[%emt 0:06:58]} Qa5+ $1 {[%emt 0:00:38]} 23. Kc1 {[%emt 0:32:31]} Qa1+ {[%emt 0:24:11]} 24. Kd2 {[%emt 0:00:06]} Qa5+ {[%emt 0:00:01]} 25. Kc1 {[%emt 0:00:09]} Qa1+ {[%emt 0:03:57]} 26. Kd2 {[%emt 0:00:08]} Qa5+ {[%emt 0:00:24] An uneventful encounter.   Weighted Error Value: White=0.06 (flawless) /Black=0.03 (flawless) .  Mistake:       	White=1     	---        Inaccurate:     	---       	Black=1      OK:         	White=5     	Black=6      Best:        	White=2     	Black=3      Strong:       	---       	Black=2} 1/2-1/2

[Event "45th FIDE Olympiad 2024"]
[Site "Budapest"]
[Date "2024.09.18"]
[Round "7.3"]
[White "Croes, Octavio"]
[Black "Pg. Shahridin, Ak. Abdul Wafie"]
[Result "0-1"]
[WhiteElo "1850"]
[BlackElo "1912"]
[PlyCount "58"]
[EventDate "2024.09.05"]
[EventType "team-tourn"]
[EventCountry "HUN"]
[WhiteTeam "Aruba"]
[BlackTeam "Brunei Darussalam"]
[WhiteTeamCountry "ARN"]
[TimeControl "40/5400+30:1800+30"]

1. d4 f5 2. c4 e6 3. g3 Nf6 4. Bg2 d5 5. Nf3 c6 6. O-O Bd6 7. b3 O-O 8. Bb2 Qe7 9. Nbd2 Nbd7 10. Ne5 Ne4 11. Nxe4 fxe4 12. f3 Nxe5 13. dxe5 Bc5+ 14. Bd4 exf3 15. exf3 Bd7 16. cxd5 cxd5 17. f4 g6 18. Rc1 Rac8 19. h3 Bxd4+ 20. Qxd4 Qa3 21. Qd2 Bb5 22. Rxc8 Rxc8 23. Bxd5 Qc5+ 24. Rf2 Qxd5 25. Qxd5 exd5 26. g4 d4 27. f5 d3 28. e6 Rc1+ 29. Kh2 Rc2 {0-} 0-1

[Event "45th FIDE Olympiad 2024"]
[Site "Budapest"]
[Date "2024.09.18"]
[Round "7.4"]
[White "Wang, Yue"]
[Black "Harikrishna, Pentala"]
[Result "1/2-1/2"]
[ECO "C54"]
[WhiteElo "2637"]
[BlackElo "2686"]
[Annotator "TA"]
[PlyCount "111"]
[EventDate "2024.09.05"]
[EventType "team-tourn"]
[EventCountry "HUN"]
[SourceTitle "playchess.com"]
[Source "ChessBase"]
[SourceQuality "1"]
[WhiteTeam "China"]
[BlackTeam "India"]
[WhiteTeamCountry "CHN"]
[BlackTeamCountry "IND"]
[TimeControl "40/5400+30:1800+30"]

{[%evp 34,111,17,12,19,19,14,10,10,12,22,-15,-25,-23,-11,-25,-19,-23,-18,-38,-53,-39,-2,-73,-89,-79,-18,-62,0,0,0,0,0,0,29,33,33,36,35,35,55,24,26,11,34,34,33,32,62,33,45,0,0,0,0,0,0,0,0,0,0,0,0,0,0,0,0,0,0,0,0,0,0,0,0,0,0,0,0,0]} 1. e4 {[%emt 0:00:06]} e5 {[%emt 0:00:12]} 2. Nf3 {[%emt 0:00:11]} Nc6 {[%emt 0:00:05]} 3. Bc4 {[%emt 0:00:12]} Bc5 {[%emt 0:00:29]} 4. O-O {[%emt 0:00:24]} Nf6 {[%emt 0:00:22]} 5. d3 {[%emt 0:00:10]} d6 {[%emt 0:01:37]} 6. c3 {[%emt 0:00:16]} a6 {[%emt 0:03:00]} 7. a4 {[%emt 0:02:14]} Ba7 {[%emt 0:00:48]} 8. Nbd2 {[%emt 0:01:25]} O-O {[%emt 0:02:44]} 9. h3 {[%emt 0:00:54]} Ne7 {[%emt 0:02:31]} 10. Re1 {[%emt 0:03:25]} Ng6 {[%emt 0:07:23] C54: Giuoco Piano: 4 c3 Nf6, main lines with 5 d4 and 5 d3.} 11. d4 {[%emt 0:02:11]} h6 {[%emt 0:03:03]} 12. Bb3 {[%emt 0:03:58]} Re8 {[%emt 0:04:19]} 13. Bc2 {[%emt 0:00:30]} b5 $1 {[%emt 0:07:15][%mdl 4] is currently scoring better than 13...Bd7.} 14. Nf1 {[%emt 0:08:58]} Bd7 {[%emt 0:07:52]} 15. Ng3 {[%emt 0:02:21]} c5 {[%emt 0:02:51]} 16. axb5 {[%emt 0:14:03]} axb5 {[%emt 0:00:23]} 17. Be3 {[%emt 0:00:07]} Qc7 {[%emt 0:04:13]} 18. dxe5 $146 {[%emt 0:08:48]} ({Predecessor:} 18. Bd3 Bb6 19. Rxa8 Rxa8 20. Nf5 Re8 21. Qb1 exd4 22. cxd4 c4 23. Bc2 b4 24. Bxh6 gxh6 {½-½ Quesada Perez,Y (2593)-Antipov,M (2609) Pan American Intercollegiate-chT rapid 2021 (9)}) 18... dxe5 {[%emt 0:00:33]} 19. Nf5 {[%emt 0:00:30]} Bxf5 {[%emt 0:05:51]} 20. exf5 {[%emt 0:00:04]} Ne7 {[%emt 0:01:54]} 21. Nd2 {[%emt 0:07:50]} Ned5 {[%emt 0:00:51]} 22. Be4 {[%emt 0:23:01]} Nxe3 {[%emt 0:02:30]} 23. Rxe3 {[%emt 0:00:07]} Rad8 {[%emt 0:00:10]} 24. Qc2 {[%emt 0:04:42]} c4 {[%emt 0:05:43]} 25. Ree1 {[%emt 0:00:23]} Rd6 {[%emt 0:03:00]} 26. Nf3 {[%emt 0:01:48]} Red8 {[%emt 0:00:49]} 27. Rf1 {[%emt 0:09:47]} Nd7 {[%emt 0:06:30]} 28. Rae1 {[%emt 0:01:02]} (28. Rfd1 $11 Nf6 29. Re1 (29. Rxd6 Rxd6 30. Rf1 Bb6 $15)) 28... Nc5 $17 {[%emt 0:00:30]} 29. Re2 {[%emt 0:00:43]} Nd3 {[%emt 0:01:14]} ({Black should try} 29... f6 $17 {[%cal Od6d3] ...Rd3! is the strong threat.} 30. Ree1 Qb6) 30. g3 {[%emt 0:00:16]} Qb6 {[%emt 0:03:12]} (30... Nc5 $15) 31. Kg2 $11 {[%emt 0:00:15]} b4 {[%emt 0:00:29]} 32. cxb4 {[%emt 0:00:26]} Qxb4 {[%emt 0:00:15]} 33. Qc3 {[%emt 0:00:50]} Qc5 {[%emt 0:07:28]} 34. Bxd3 {[%emt 0:03:31]} cxd3 {[%emt 0:02:37]} 35. Qxc5 {[%emt 0:00:05]} Bxc5 {[%emt 0:00:05]} 36. Rxe5 {[%emt 0:00:04]} Bd4 {[%emt 0:05:57]} 37. Nxd4 {[%emt 0:01:56]} Rxd4 {[%emt 0:00:06]} 38. Rb5 {[%emt 0:00:55]} Rc4 {[%emt 0:04:46]} 39. Rd1 {[%emt 0:00:25]} Rc2 {[%emt 0:00:13]} 40. Kf3 {[%emt 0:00:30]} g6 {[%emt 0:01:47]} 41. fxg6 {[%emt 0:07:53]} fxg6 {[%emt 0:00:16]} 42. Rb7 {[%emt 0:00:26]} Rf8+ {[%emt 0:10:12]} 43. Ke3 {[%emt 0:08:09]} Rcxf2 {[%emt 0:00:43]} 44. Rxd3 {[%emt 0:01:10]} R2f3+ {[%emt 0:00:27]} 45. Ke4 {[%emt 0:01:24]} Rxd3 {[%emt 0:00:05]} 46. Kxd3 {[%emt 0:00:03]} Rf3+ {[%emt 0:00:06]} 47. Kc4 {[%emt 0:07:37]} Rxg3 {[%emt 0:00:26]} 48. b4 {[%emt 0:00:05]} Rxh3 {[%emt 0:04:31]} 49. b5 {[%emt 0:00:03]} Rh1 {[%emt 0:00:08]} 50. Rd7 {[%emt 0:00:49]} Rb1 {[%emt 0:03:19]} 51. Kc5 {[%emt 0:00:03]} Rc1+ {[%emt 0:00:12]} 52. Kd6 {[%emt 0:01:51]} Rb1 {[%emt 0:00:12]} 53. Kc5 {[%emt 0:00:35]} Rc1+ {[%emt 0:00:11]} 54. Kd6 {[%emt 0:01:24]} Rb1 {[%emt 0:00:17]} 55. Kc6 {[%emt 0:00:24]} Rc1+ {[%emt 0:00:09]} 56. Kd6 {[%emt 0:05:38]} 1/2-1/2

[Event "45th FIDE Olympiad 2024"]
[Site "Budapest"]
[Date "2024.09.18"]
[Round "7.4"]
[White "Akmal, Ahmad"]
[Black "Pesqueira, Jose"]
[Result "1-0"]
[WhiteElo "1830"]
[BlackElo "1880"]
[Annotator "COMBH"]
[PlyCount "65"]
[EventDate "2024.09.05"]
[EventType "team-tourn"]
[EventCountry "HUN"]
[WhiteTeam "Brunei Darussalam"]
[BlackTeam "Aruba"]
[BlackTeamCountry "ARN"]
[TimeControl "40/5400+30:1800+30"]

1. e4 c5 2. c3 d5 3. exd5 Qxd5 4. d4 Nf6 5. Nf3 Bg4 6. Be2 e6 7. O-O Be7 8. Na3 O-O 9. Nb5 Na6 10. Be3 cxd4 11. Nbxd4 e5 12. Nb3 Qxd1 13. Raxd1 Rfd8 14. h3 Bxf3 15. Bxf3 e4 16. Be2 Nc7 17. Nd4 g6 18. Bc4 Ncd5 19. Bc1 Rac8 20. Bb3 a6 21. Rfe1 b5 22. g4 b4 23. g5 Nh5 24. Rxe4 Bf8 25. Nf3 Ne7 26. Rxd8 Rxd8 27. Ne5 Nd5 28. Rd4 Bg7 29. Bxd5 Rf8 30. f4 Ng3 31. Kf2 Nf5 32. Rxb4 Nd6 33. Rb6 1-0

[Event "45th FIDE Olympiad 2024"]
[Site "Budapest"]
[Date "2024.09.18"]
[Round "7.5"]
[White "Stremavicius, Titas"]
[Black "Rapport, Richard"]
[Result "1/2-1/2"]
[ECO "A46"]
[WhiteElo "2527"]
[BlackElo "2715"]
[Annotator "TA"]
[PlyCount "76"]
[EventDate "2024.09.05"]
[EventType "team-tourn"]
[EventCountry "HUN"]
[SourceTitle "playchess.com"]
[Source "ChessBase"]
[SourceQuality "1"]
[WhiteTeam "Lithuania"]
[BlackTeam "Hungary"]
[WhiteTeamCountry "LTU"]
[BlackTeamCountry "HUN"]
[TimeControl "40/5400+30:1800+30"]

{[%evp 9,76,0,16,12,22,20,17,19,20,35,22,21,17,28,18,21,14,6,33,23,51,54,57,26,16,41,21,13,22,20,26,25,28,27,25,25,25,19,33,22,22,25,25,0,18,0,11,0,8,18,43,6,18,0,2,-10,-10,-12,31,30,47,44,64,53,60,63,67,63,70]} 1. d4 {[%emt 0:00:35]} Nf6 {[%emt 0:01:04]} 2. Nf3 {[%emt 0:00:00]} d6 {[%emt 0:00:52]} 3. Nc3 {[%emt 0:00:57]} Bf5 {[%emt 0:01:49]} 4. Nh4 {[%emt 0:01:02]} Bd7 {[%emt 0:01:25]} 5. Nf3 {[%emt 0:00:29]} d5 {[%emt 0:03:11][%cal Oc7c5]} 6. Qd3 {[%emt 0:04:04]} e6 {[%emt 0:05:14]} 7. e4 {[%emt 0:11:16]} dxe4 {[%emt 0:06:25]} 8. Nxe4 {[%emt 0:00:05] The position is equal.} Nxe4 {[%emt 0:04:54]} 9. Qxe4 {[%emt 0:00:05]} Bc6 {[%emt 0:00:04]} 10. Qd3 {[%emt 0:23:58]} Nd7 {[%emt 0:06:32]} 11. Be2 {[%emt 0:01:40]} h6 {[%emt 0:02:12]} 12. O-O {[%emt 0:03:25]} Bd6 {[%emt 0:03:04]} 13. Re1 {[%emt 0:04:19]} Qf6 {[%emt 0:05:28]} 14. b3 {[%emt 0:05:39]} O-O-O {[%emt 0:12:04][%cal Od7e5]} 15. Bb2 $1 {[%emt 0:00:41]} Qf4 {[%emt 0:04:19]} 16. g3 {[%emt 0:03:05]} (16. Bd1 $5) 16... Qe4 {[%emt 0:00:27]} 17. Qxe4 {[%emt 0:03:34]} Bxe4 {[%emt 0:00:15]} 18. Rac1 {[%emt 0:00:39]} Rhe8 {[%emt 0:06:12]} 19. Nd2 {[%emt 0:00:30]} Bg6 {[%emt 0:03:53]} 20. Nc4 {[%emt 0:02:22]} Bb4 {[%emt 0:00:52]} 21. Red1 {[%emt 0:00:07]} Be4 {[%emt 0:00:26]} 22. a3 {[%emt 0:02:04]} Be7 {[%emt 0:00:45]} 23. Re1 {[%emt 0:00:48]} g6 {[%emt 0:03:32] Prevents Bh5.} 24. Bf1 {[%emt 0:06:30]} Bf3 {[%emt 0:03:00]} 25. Nd2 {[%emt 0:03:04]} Bc6 {[%emt 0:00:54]} 26. Nc4 {[%emt 0:00:56]} Bf6 {[%emt 0:03:40]} 27. Rcd1 {[%emt 0:03:14][%cal Bc1d1,Bd1d3,Bd3f3][%mdl 32]} Bf3 {[%emt 0:00:56]} 28. Be2 {[%emt 0:03:36]} Bxe2 {[%emt 0:05:44]} 29. Rxe2 {[%emt 0:00:02]} Nb8 {[%emt 0:00:35][%cal Bd7b8,Bb8c6,Bc6a7][%mdl 32]} 30. Rd3 {[%emt 0:04:28]} Bg7 {[%emt 0:02:43]} 31. Rf3 {[%emt 0:00:57]} Re7 {[%emt 0:00:39]} 32. c3 {[%emt 0:02:41]} Nc6 {[%emt 0:01:38]} 33. a4 {[%emt 0:00:02]} Rd5 {[%emt 0:01:36]} 34. b4 {[%emt 0:03:52]} a6 {[%emt 0:00:41]} 35. Ne3 {[%emt 0:00:26] White is slightly better.} Rdd7 {[%emt 0:00:45]} 36. b5 $1 {[%emt 0:04:41]} Na7 {[%emt 0:00:17]} 37. bxa6 {[%emt 0:00:43]} bxa6 {[%emt 0:00:06]} 38. Ba3 {[%emt 0:01:22]} Re8 {[%emt 0:00:06] Weighted Error Value: White=0.06 (flawless) /Black=0.08 (flawless) .  Inaccurate:     	White=2     	Black=3      OK:         	White=10    	Black=12     Best:        	White=1     	Black=1      Strong:       	White=2     	---} 1/2-1/2

[Event "45th FIDE Olympiad 2024"]
[Site "Budapest"]
[Date "2024.09.18"]
[Round "7.5"]
[White "D`amico, Nicola"]
[Black "Mwale, Joseph"]
[Result "0-1"]
[WhiteElo "1801"]
[BlackElo "2063"]
[PlyCount "36"]
[EventDate "2024.09.05"]
[EventType "team-tourn"]
[EventCountry "HUN"]
[WhiteTeam "San Marino"]
[BlackTeam "Malawi"]
[WhiteTeamCountry "SMR"]
[BlackTeamCountry "MWI"]
[TimeControl "40/5400+30:1800+30"]

1. e4 e5 2. Nf3 Nc6 3. Bc4 Nf6 4. d3 Bc5 5. O-O d6 6. c3 h6 7. Nbd2 g5 8. b4 Bb6 9. a4 a6 10. Ra3 g4 11. Ne1 h5 12. Kh1 h4 13. f4 g3 14. b5 h3 15. bxc6 hxg2+ 16. Kxg2 Rxh2+ 17. Kxg3 Nh5+ 18. Kf3 Bg4+ {0-} 0-1